bitfinex-derivatives/quotes_SOLF0:USTF0_20260107
["timestamp","ask_amount","ask_price","bid_price","bid_amount"]
[1767764090818,2.32641831,139.38,139.32,15.42294531]
[1767764098523,6.4606,139.4,139.3,13.49046899]
[1767764098524,1.72774288,139.36,139.31,6.20452432]
[1767764098726,1.72774288,139.34,139.26,13.49046899]
[1767764099016,5.64056593,139.33,139.26,13.49046899]
[1767764099219,6.593e-05,139.32,139.28,6.4658]
[1767764099410,6.593e-05,139.31,139.28,6.4658]
[1767764099726,0.59867543,139.35,139.28,6.4658]
[1767764100324,2.32520957,139.34,139.26,6.4666]
[1767764106529,8.78850957,139.34,139.26,6.4666]
[1767764106729,0.58310901,139.33,139.26,6.4666]
[1767764107321,1.72774288,139.3,139.24,6.4676]
[1767764107520,0.58310901,139.33,139.23,1.72774288]
[1767764108622,0.58310901,139.33,139.25,6.4672]
[1767764109834,2.31085189,139.32,139.23,8.19574288]
[1767764110827,0.58310901,139.31,139.23,6.468]
[1767764111228,5.47390189,139.3,139.23,6.468]
[1767764111429,5.47390189,139.29,139.23,6.468]
[1767764111633,5.47390189,139.28,139.23,6.468]
[1767764111827,6.4649,139.31,139.21,8.19664288]
[1767764112129,0.58310901,139.28,139.19,84.86]
[1767764112435,5.47399774,139.27,139.2,1.72774288]
[1767764112627,2.31085189,139.3,139.2,1.72774288]
[1767764112831,5.47209649,139.29,139.2,1.72774288]
[1767764113135,5.47209649,139.28,139.19,86.58774288]
[1767764113335,5.47209649,139.27,139.21,1.72774288]
[1767764113534,0.58310901,139.3,139.21,1.72774288]
[1767764113731,5.46954273,139.29,139.21,1.72774288]
[1767764113930,5.46954273,139.28,139.21,1.72774288]
[1767764114132,0.58310901,139.3,139.22,6.4683]
[1767764114325,5.46795592,139.29,139.22,6.4683]
[1767764114531,5.46795592,139.28,139.22,6.4683]
[1767764114736,5.46795592,139.27,139.22,6.4683]
[1767764114936,2.31085189,139.3,139.22,6.4683]
[1767764115136,5.46785781,139.29,139.22,6.4683]
[1767764115336,5.46785781,139.28,139.22,6.4683]
[1767764115532,5.46785781,139.27,139.22,6.4683]
[1767764115726,2.31085189,139.3,139.22,6.4683]
[1767764115932,5.55583484,139.29,139.22,6.4683]
[1767764116135,5.55583484,139.28,139.22,6.4683]
[1767764116336,5.55583484,139.27,139.22,6.4683]
[1767764116532,2.31085189,139.3,139.22,6.4683]
[1767764116736,5.55427418,139.29,139.22,6.4683]
[1767764116938,5.55427418,139.28,139.22,6.4683]
[1767764117239,5.55427418,139.27,139.22,6.4683]
[1767764117541,2.31085189,139.3,139.22,6.4683]
[1767764117740,5.55272768,139.29,139.22,6.4683]
[1767764117928,5.55272768,139.28,139.22,6.4683]
[1767764118132,2.31085189,139.3,139.22,6.4683]
[1767764118332,5.55175765,139.29,139.22,6.4683]
[1767764118528,5.55175765,139.28,139.22,6.4683]
[1767764118727,2.31085189,139.3,139.22,6.4683]
[1767764118931,5.55143539,139.29,139.22,6.4683]
[1767764119128,5.55143539,139.28,139.22,6.4683]
[1767764119332,2.31085189,139.3,139.22,6.4683]
[1767764119630,5.5503069,139.29,139.22,6.4683]
[1767764119834,5.5503069,139.28,139.22,6.4683]
[1767764120042,2.31085189,139.3,139.22,6.4683]
[1767764120232,5.54960809,139.29,139.22,6.4683]
[1767764120534,5.54960809,139.28,139.22,6.4683]
[1767764120735,2.31085189,139.3,139.22,6.4683]
[1767764120928,5.54933374,139.29,139.22,6.4683]
[1767764121131,5.54933374,139.28,139.22,6.4683]
[1767764121333,2.31085189,139.3,139.22,6.4683]
[1767764121636,5.54851569,139.29,139.22,6.4683]
[1767764121834,5.54851569,139.28,139.22,6.4683]
[1767764122031,2.31085189,139.34,139.25,1.72774288]
[1767764122234,5.54751546,139.33,139.25,1.72774288]
[1767764122434,0.58310901,139.34,139.25,1.72774288]
[1767764123542,0.58310901,139.34,139.25,8.19484288]
[1767764123842,2.31085189,139.31,139.23,84.88]
[1767764124342,2.31085189,139.31,139.24,6.4677]
[1767764125044,0.58310901,139.31,139.24,6.4677]
[1767764125239,2.31085189,139.31,139.24,6.4677]
[1767764130548,0.58310901,139.31,139.24,6.4677]
[1767764132849,0.58310901,139.31,139.22,6.4685]
[1767764133252,0.54830317,139.3,139.22,6.4685]
[1767764139957,0.54830317,139.3,139.23,6.4681]
[1767764140157,6.4647,139.31,139.23,6.4681]
[1767764140551,0.54830317,139.35,139.24,2.70301649]
[1767764140760,0.54830317,139.35,139.25,84.88]
[1767764141758,7.01130317,139.35,139.26,6.4667]
[1767764143360,0.54830317,139.35,139.27,6.4662]
[1767764143562,7.01040317,139.37,139.26,2.70301649]
[1767764143771,7.01040317,139.37,139.26,103.29411649]
[1767764144056,0.54830317,139.37,139.28,2.70301649]
[1767764144256,0.54830317,139.39,139.28,87.58301649]
[1767764144454,7.00930317,139.39,139.29,6.4652]
[1767764147055,7.00930317,139.39,139.3,9.16781649]
[1767764147260,0.54830317,139.39,139.3,9.16781649]
[1767764147462,0.54830317,139.39,139.3,87.56301649]
[1767764147861,21.87737654,139.41,139.31,6.4642]
[1767764150268,15.41727654,139.41,139.31,6.4642]
[1767764150462,15.41727654,139.41,139.32,6.4638]
[1767764151163,0.54830317,139.4,139.32,6.4638]
[1767764158976,0.54830317,139.4,139.3,6.4648]
[1767764160374,0.58232047,139.38,139.3,6.4648]
[1767764167183,0.58232047,139.38,139.31,6.4644]
[1767764171489,6.4606,139.4,139.31,6.4644]
[1767764171686,7.05231245,139.4,139.31,6.4644]
[1767764171883,14.86897337,139.41,139.31,100.5599]
[1767764172091,15.46068582,139.41,139.31,100.5599]
[1767764172291,0.59171245,139.4,139.32,84.84]
[1767764173591,0.59171245,139.4,139.32,91.3038]
[1767764173887,0.59171245,139.4,139.32,6.4638]
[1767764174079,0.59171245,139.4,139.32,91.3038]
[1767764175183,0.59171245,139.4,139.32,6.4638]
[1767764177498,0.59171245,139.39,139.3,6.4648]
[1767764177688,0.59171245,139.37,139.27,100.5863]
[1767764177891,0.59171245,139.37,139.28,84.84]
[1767764178089,0.59171245,139.37,139.25,113.96622862]
[1767764178295,2.70301649,139.38,139.28,6.4658]
[1767764178296,0.59171245,139.36,139.28,6.4658]
[1767764178595,0.59171245,139.35,139.26,84.82]
[1767764179200,0.59171245,139.35,139.24,100.608]
[1767764179392,0.59171245,139.35,139.25,84.82]
[1767764179698,0.59171245,139.35,139.26,6.4668]
[1767764189711,0.59171245,139.33,139.24,6.4675]
[1767764189901,0.59171245,139.31,139.24,6.4675]
[1767764192710,2.32169328,139.31,139.24,6.4675]
[1767764192913,8.73086329,139.35,139.25,1.72998083]
[1767764194704,8.73086329,139.35,139.26,6.4666]
[1767764195604,0.53798246,139.34,139.26,6.4666]
[1767764196815,2.26796329,139.34,139.26,6.4666]
[1767764201013,0.53798246,139.33,139.26,6.4666]
[1767764206735,2.26796329,139.32,139.24,6.4676]
[1767764208437,2.26796329,139.32,139.22,187.21248083]
[1767764208438,0.53798246,139.31,139.22,93.05838083]
[1767764208836,0.53798246,139.31,139.22,86.58998083]
[1767764209633,0.53798246,139.31,139.23,6.4682]
[1767764213538,6.4643,139.32,139.23,6.4682]
[1767764213733,6.4643,139.32,139.23,8.19818083]
[1767764214039,7.00228246,139.32,139.23,8.19818083]
[1767764214538,100.5356,139.35,139.25,1.72998083]
[1767764214539,7.00128246,139.34,139.25,1.72998083]
[1767764215042,0.53798246,139.34,139.26,6.4667]
[1767764216142,0.53798246,139.34,139.27,6.4663]
[1767764216947,91.3225,139.36,139.25,1.72998083]
[1767764217150,0.53798246,139.36,139.27,1.72998083]
[1767764217651,0.53798246,139.36,139.28,84.88]
[1767764217844,0.53798246,139.36,139.29,8.19528083]
[1767764218048,0.53798246,139.38,139.3,1.72998083]
[1767764219552,0.53798246,139.38,139.31,6.4644]
[1767764222948,0.53798246,139.38,139.29,93.07538083]
[1767764224856,0.53798246,139.38,139.3,6.4648]
[1767764226861,0.54355364,139.39,139.3,6.4648]
[1767764228954,0.54355364,139.39,139.3,91.3048]
[1767764235661,2.27353447,139.38,139.3,91.3048]
[1767764236569,0.54355364,139.37,139.3,91.3048]
[1767764236771,2.27353447,139.34,139.28,6.4657]
[1767764238270,2.27353447,139.34,139.26,6.4666]
[1767764238471,2.27353447,139.34,139.26,91.3066]
[1767764240568,2.27353447,139.34,139.27,6.4663]
[1767764252496,0.54355364,139.34,139.27,6.4663]
[1767764262096,0.53697068,139.33,139.25,6.4673]
[1767764262603,0.53697068,139.32,139.22,84.86]
[1767764263605,0.53697068,139.32,139.23,6.468]
[1767764264705,7.00147068,139.32,139.23,6.468]
[1767764265008,0.53697068,139.26,139.14,114.04582862]
[1767764265203,0.53697068,139.26,139.14,100.681]
[1767764265510,0.53697068,139.26,139.16,6.4713]
[1767764266009,0.53697068,139.26,139.17,6.4707]
[1767764268801,0.53697068,139.26,139.18,6.4704]
[1767764269706,0.53697068,139.28,139.19,100.647]
[1767764271613,0.53697068,139.28,139.21,6.469]
[1767764272513,3.23871673,139.28,139.21,6.469]
[1767764272713,0.53697068,139.27,139.21,6.469]
[1767764274122,0.53697068,139.23,139.12,100.6959]
[1767764274420,0.53697068,139.19,139.1,100.7097]
[1767764274615,0.53697068,139.19,139.12,6.4729]
[1767764274923,0.53697068,139.21,139.11,100.7018]
[1767764275415,0.53697068,139.21,139.13,6.4726]
[1767764281919,0.52584453,139.23,139.14,100.6823]
[1767764282718,0.52584453,139.23,139.16,6.4713]
[1767764283319,84.92,139.25,139.17,6.4708]
[1767764283521,84.92,139.25,139.15,100.6742]
[1767764283522,84.92,139.25,139.16,100.6675]
[1767764284521,84.92,139.25,139.18,6.4703]
[1767764286723,84.92,139.25,139.16,100.6675]
[1767764286724,84.92,139.25,139.19,6.4699]
[1767764290125,0.52584453,139.24,139.17,6.471]
[1767764290427,0.52584453,139.24,139.13,87.62174605]
[1767764290930,3.22759058,139.24,139.12,185.615]
[1767764291130,0.52584453,139.23,139.12,185.615]
[1767764291528,0.52584453,139.23,139.15,6.4718]
[1767764293234,0.52584453,139.22,139.13,6.4727]
[1767764295228,0.52584453,139.22,139.14,6.4723]
[1767764295728,0.52584453,139.22,139.13,100.6874]
[1767764296137,88.14759058,139.24,139.15,6.4717]
[1767764296433,0.52584453,139.26,139.15,100.6755]
[1767764297535,0.52584453,139.26,139.17,6.4708]
[1767764298232,0.52584453,139.25,139.17,6.4708]
[1767764299537,6.4673,139.26,139.18,6.4705]
[1767764300035,6.99314453,139.26,139.18,6.4705]
[1767764307834,0.52584453,139.25,139.16,84.92]
[1767764308936,0.52584453,139.25,139.15,100.6733]
[1767764309234,0.52584453,139.25,139.15,185.5933]
[1767764309540,0.52584453,139.25,139.17,6.471]
[1767764310340,0.52584453,139.25,139.18,6.4705]
[1767764310543,6.4673,139.26,139.18,6.4705]
[1767764310942,6.99314453,139.26,139.18,6.4705]
[1767764312842,6.99314453,139.26,139.14,100.6807]
[1767764312843,0.5812917,139.22,139.13,13.36482862]
[1767764313039,0.5812917,139.2,139.1,100.7094]
[1767764313747,0.5812917,139.2,139.13,6.4728]
[1767764314546,1.73309872,139.18,139.13,6.4728]
[1767764315039,1.73309872,139.19,139.13,6.4728]
[1767764316348,1.73309872,139.2,139.13,6.4728]
[1767764324353,2.31439042,139.2,139.13,6.4728]
[1767764331059,0.5812917,139.2,139.13,6.4728]
[1767764331659,0.5812917,139.22,139.14,6.4723]
[1767764334159,0.5812917,139.2,139.14,6.4723]
[1767764337561,1.73309872,139.21,139.14,6.4723]
[1767764340259,1.73309872,139.23,139.15,6.4718]
[1767764340470,0.56797396,139.27,139.17,1.73309872]
[1767764340660,0.56797396,139.21,139.11,114.06682862]
[1767764340965,0.56797396,139.21,139.14,6.4723]
[1767764341463,1.73309872,139.22,139.14,6.4723]
[1767764342465,7.03637396,139.23,139.14,8.20539872]
[1767764343555,7.02615166,139.25,139.16,1.73309872]
[1767764343762,2.29165038,139.24,139.15,1.73309872]
[1767764344062,0.55855166,139.24,139.15,1.73309872]
[1767764344268,2.29165038,139.24,139.15,1.73309872]
[1767764345572,8.75965038,139.24,139.16,6.4714]
[1767764346373,2.29165038,139.24,139.16,6.4714]
[1767764352383,0.55855166,139.23,139.16,6.4714]
[1767764356698,0.55855166,139.21,139.13,91.4125]
[1767764356903,0.55855166,139.19,139.13,6.4725]
[1767764358503,0.55855166,139.19,139.11,6.4736]
[1767764358702,0.55855166,139.19,139.1,102.43849872]
[1767764359000,0.55855166,139.19,139.1,115.80332734]
[1767764359703,0.55855166,139.19,139.12,6.4732]
[1767764362097,1.73309872,139.2,139.13,6.4728]
[1767764362604,0.55855166,139.21,139.13,6.4728]
[1767764368309,0.55855166,139.21,139.14,6.4723]
[1767764369206,0.55855166,139.21,139.15,6.4719]
[1767764370797,1.73309872,139.24,139.16,6.4714]
[1767764370998,6.4677,139.25,139.16,1.73309872]
[1767764371199,7.02625166,139.25,139.16,1.73309872]
[1767764372615,91.95214693,139.27,139.18,1.73309872]
[1767764373116,7.01214693,139.27,139.18,1.73309872]
[1767764373717,7.01214693,139.27,139.18,8.20359872]
[1767764374011,0.54554693,139.27,139.18,1.73309872]
[1767764375023,0.54554693,139.27,139.2,6.4695]
[1767764378127,85.48554693,139.29,139.2,6.4695]
[1767764378518,0.54554693,139.28,139.2,6.4695]
[1767764379422,84.94,139.29,139.19,103.34877618]
[1767764379611,3.24972311,139.33,139.22,100.625]
[1767764379810,0.54554693,139.33,139.22,185.545]
[1767764380628,0.54554693,139.33,139.24,6.4676]
[1767764382026,7.00844693,139.35,139.24,100.6088]
[1767764382228,0.54554693,139.34,139.24,100.6088]
[1767764382528,0.54554693,139.34,139.24,185.5288]
[1767764383612,0.54554693,139.34,139.26,6.4666]
[1767764384629,0.54554693,139.34,139.24,91.3875]
[1767764384830,0.54554693,139.32,139.24,6.4675]
[1767764390030,0.54554693,139.32,139.22,91.3685]
[1767764390731,0.54554693,139.31,139.22,91.3685]
[1767764391024,0.54554693,139.31,139.22,6.4685]
[1767764392834,0.54554693,139.31,139.23,6.4681]
[1767764401244,7.01024693,139.31,139.23,6.4681]
[1767764401851,0.54554693,139.31,139.24,6.4675]
[1767764402038,0.51784505,139.35,139.25,100.6033]
[1767764402240,0.51784505,139.35,139.25,103.30747618]
[1767764402633,0.51784505,139.35,139.27,6.4662]
[1767764402838,0.51784505,139.35,139.24,84.88]
[1767764403039,0.51784505,139.34,139.22,100.6221]
[1767764403342,0.51784505,139.32,139.22,185.5021]
[1767764403735,0.51784505,139.32,139.21,2.70417618]
[1767764403940,0.51784505,139.32,139.22,84.88]
[1767764404544,0.51784505,139.32,139.22,185.5008]
[1767764404835,0.51784505,139.34,139.24,100.6082]
[1767764405036,84.88,139.35,139.25,100.6025]
[1767764405240,85.39784505,139.35,139.25,100.6025]
[1767764405735,85.39784505,139.35,139.24,100.6082]
[1767764405941,0.51784505,139.34,139.23,2.70417618]
[1767764406148,0.51784505,139.34,139.24,84.88]
[1767764407653,0.51784505,139.33,139.25,6.4672]
[1767764408852,0.51784505,139.26,139.14,100.6808]
[1767764409046,3.22202123,139.23,139.12,100.6951]
[1767764409245,0.51784505,139.22,139.14,6.4723]
[1767764409760,3.22202123,139.25,139.13,185.5648]
[1767764409960,3.22202123,139.25,139.14,100.6819]
[1767764410155,0.51784505,139.25,139.15,100.676]
[1767764410457,0.51784505,139.25,139.15,185.556]
[1767764411247,0.51784505,139.25,139.17,6.4708]
[1767764413060,3.22202123,139.25,139.17,6.4708]
[1767764413258,3.22202123,139.25,139.15,91.3518]
[1767764413765,3.22202123,139.25,139.15,84.88]
[1767764414561,3.22202123,139.25,139.16,6.4712]
[1767764414857,3.22202123,139.27,139.15,87.58417618]
[1767764415160,3.22202123,139.27,139.16,91.3713]
[1767764415161,0.51784505,139.26,139.16,91.3713]
[1767764416460,3.22202123,139.25,139.16,6.4713]
[1767764416763,0.51784505,139.24,139.16,84.9]
[1767764417957,0.51784505,139.24,139.14,6.4723]
[1767764418161,0.51784505,139.24,139.14,91.3723]
[1767764419171,0.51784505,139.26,139.14,185.5789]
[1767764420157,0.51784505,139.26,139.16,100.6653]
[1767764421560,0.51784505,139.26,139.18,6.4703]
[1767764422766,9.17077618,139.27,139.18,6.4703]
[1767764423567,9.68862123,139.27,139.18,6.4703]
[1767764428568,6.98444505,139.27,139.18,6.4703]
[1767764430268,0.51784505,139.26,139.18,6.4703]
[1767764430973,0.51784505,139.25,139.15,100.6754]
[1767764431265,0.51784505,139.25,139.14,100.6789]
[1767764431266,0.51784505,139.24,139.14,100.6789]
[1767764431657,0.51784505,139.24,139.16,6.4714]
[1767764432268,0.51784505,139.24,139.17,6.4709]
[1767764433466,0.53269616,139.26,139.18,6.4704]
[1767764436779,0.53269616,139.26,139.19,6.4699]
[1767764436966,0.53269616,139.28,139.18,100.6543]
[1767764438474,0.53269616,139.28,139.18,102.38519514]
[1767764438672,2.2635913,139.28,139.2,6.4694]
[1767764444984,2.2635913,139.28,139.17,102.38859514]
[1767764444985,1.73089514,139.26,139.17,102.38859514]
[1767764446583,1.73089514,139.26,139.19,6.4699]
[1767764446786,0.53269616,139.27,139.19,6.4699]
[1767764448791,0.53269616,139.29,139.19,1.73089514]
[1767764449588,0.53269616,139.29,139.21,6.4691]
[1767764449985,6.4654,139.3,139.21,8.19999514]
[1767764450286,6.4654,139.3,139.21,1.73089514]
[1767764451190,6.99809616,139.3,139.21,1.73089514]
[1767764451581,6.99809616,139.3,139.22,6.4684]
[1767764453998,0.53269616,139.3,139.22,6.4684]
[1767764455484,1.73089514,139.29,139.22,6.4684]
[1767764459799,2.23114694,139.29,139.22,6.4684]
[1767764460199,0.5002518,139.28,139.2,6.4694]
[1767764460494,0.5002518,139.28,139.19,100.6432]
[1767764461601,0.5002518,139.28,139.21,6.469]
[1767764462995,0.50145926,139.26,139.19,6.4699]
[1767764463192,2.2323544,139.25,139.15,200.66682376]
[1767764464292,2.2323544,139.25,139.18,6.4705]
[1767764466097,2.2323544,139.25,139.15,198.93592862]
[1767764466098,0.50145926,139.24,139.16,6.4714]
[1767764468097,2.2323544,139.23,139.16,6.4714]
[1767764468297,2.2323544,139.23,139.13,185.5875]
[1767764468298,1.73089514,139.21,139.13,185.5875]
[1767764469103,1.73089514,139.22,139.13,185.5875]
[1767764469704,1.73089514,139.22,139.15,6.4717]
[1767764470197,0.50145926,139.21,139.15,6.4717]
[1767764470605,0.50145926,139.21,139.13,91.3728]
[1767764473796,2.2323544,139.2,139.13,6.4728]
[1767764474003,0.50145926,139.19,139.11,6.4736]
[1767764474203,0.50145926,139.19,139.11,84.92]
[1767764474807,0.50145926,139.19,139.12,6.4732]
[1767764475706,2.2323544,139.18,139.11,84.92]
[1767764476604,2.2323544,139.18,139.11,91.3936]
[1767764480407,0.50145926,139.2,139.11,86.65089514]
[1767764480710,8.7012544,139.22,139.11,102.43319514]
[1767764480914,8.7012544,139.22,139.12,84.94]
[1767764481213,0.50145926,139.21,139.12,84.94]
[1767764481604,0.50145926,139.21,139.13,6.4728]
[1767764483209,0.50145926,139.19,139.11,6.4736]
[1767764483504,0.50145926,139.19,139.12,84.94]
[1767764483911,2.2323544,139.18,139.11,6.4736]
[1767764485810,2.2323544,139.2,139.1,84.94]
[1767764486018,2.2323544,139.2,139.12,6.4731]
[1767764491117,0.50145926,139.19,139.12,6.4731]
[1767764501016,6.97175926,139.19,139.1,91.414]
[1767764501224,0.50132974,139.18,139.1,91.414]
[1767764502318,0.50132974,139.18,139.11,6.4736]
[1767764507825,0.50132974,139.17,139.09,6.4745]
[1767764508020,0.50132974,139.15,139.05,100.7463]
[1767764508220,0.50132974,139.15,139.05,185.7063]
[1767764509626,0.50132974,139.15,139.08,6.4751]
[1767764511025,0.50132974,139.15,139.06,6.4758]
[1767764511227,0.50132974,139.14,139.06,6.4758]
[1767764520126,0.49454722,139.13,139.05,84.96]
[1767764521627,0.49454722,139.13,139.05,91.4365]
[1767764525128,0.49326895,139.15,139.05,84.96]
[1767764525329,0.49326895,139.17,139.07,100.7335]
[1767764525728,0.49326895,139.17,139.08,84.98]
[1767764526432,0.49326895,139.17,139.05,100.7436]
[1767764526633,0.49326895,139.17,139.06,84.98]
[1767764526935,0.49326895,139.15,139.06,84.98]
[1767764527635,6.96536895,139.15,139.07,6.4754]
[1767764529036,0.49326895,139.14,139.07,6.4754]
[1767764534842,0.49326895,139.13,139.06,84.98]
[1767764535337,0.49326895,139.13,139.05,6.4763]
[1767764547253,6.96626895,139.13,139.03,91.4574]
[1767764548456,6.96626895,139.13,139.04,6.477]
[1767764549053,0.49326895,139.11,139.04,6.477]
[1767764557063,6.4735,139.12,139.04,6.477]
[1767764562067,0.47166747,139.11,139.04,6.477]
[1767764568568,0.47166747,139.1,139.04,6.477]
[1767764569570,1.73481166,139.11,139.04,6.477]
[1767764569767,6.94516747,139.12,139.04,6.477]
[1767764569969,0.47166747,139.11,139.04,6.477]
[1767764573975,6.94626747,139.1,139.02,6.4778]
[1767764577974,6.4737,139.12,139.03,6.4774]
[1767764578179,0.47166747,139.13,139.04,1.73481166]
[1767764579582,6.94476747,139.13,139.04,8.21181166]
[1767764580181,6.94476747,139.13,139.04,6.477]
[1767764580877,0.51173325,139.12,139.04,6.477]
[1767764581277,2.24654491,139.12,139.04,6.477]
[1767764581581,8.20831166,139.12,139.04,6.477]
[1767764581778,2.20435465,139.1,139.02,6.4778]
[1767764585090,0.46954299,139.09,139.02,6.4778]
[1767764586699,2.20435465,139.12,139.03,100.763]
[1767764587694,2.20435465,139.12,139.05,6.4764]
[1767764588590,0.46954299,139.12,139.05,6.4764]
[1767764595495,2.20435465,139.11,139.03,6.4774]
[1767764600301,2.20435465,139.11,139.02,13.36482862]
[1767764600302,2.20435465,139.11,139.04,6.477]
[1767764601499,0.46954299,139.11,139.04,6.477]
[1767764602604,1.73481166,139.12,139.04,6.477]
[1767764602804,2.20435465,139.12,139.04,6.477]
[1767764604300,0.46954299,139.11,139.04,6.477]
[1767764604505,0.46954299,139.09,139.01,13.36482862]
[1767764604703,1.73481166,139.1,139.01,13.36482862]
[1767764605204,2.20435465,139.1,139.01,13.36482862]
[1767764605706,2.20435465,139.1,139.03,6.4774]
[1767764622720,0.46954299,139.1,139.03,6.4774]
[1767764626123,0.46954299,139.1,139.0,13.36482862]
[1767764627623,0.50306202,139.09,139.02,6.4779]
[1767764637735,0.50306202,139.09,138.99,100.792]
[1767764637933,0.50306202,139.09,139.0,8.9670881]
[1767764638536,5.54186904,139.08,139.01,6.4783]
[1767764638737,5.54186904,139.07,139.01,6.4783]
[1767764638937,5.54186904,139.06,139.01,6.4783]
[1767764639234,0.50306202,139.09,139.01,6.4783]
[1767764639235,6.904e-05,139.05,139.01,6.4783]
[1767764639441,0.50306202,139.09,139.01,6.4783]
[1767764642237,0.50306202,139.09,139.02,6.4778]
[1767764643948,6.93940649,139.11,139.03,6.4774]
[1767764644249,0.46520649,139.1,139.03,6.4774]
[1767764645348,0.46520649,139.12,139.05,6.4764]
[1767764649651,0.46520649,139.12,139.06,6.476]
[1767764652549,0.46520649,139.14,139.06,6.476]
[1767764652746,0.46520649,139.14,139.07,6.4756]
[1767764653057,91.4717,139.16,139.07,6.4756]
[1767764653058,91.93690649,139.16,139.07,6.4756]
[1767764653648,0.46520649,139.16,139.06,112.41592949]
[1767764653954,0.46520649,139.16,139.07,8.9670881]
[1767764654651,0.46520649,139.16,139.09,6.4746]
[1767764664969,0.46520649,139.16,139.07,6.4754]
[1767764668768,0.46520649,139.16,139.08,6.4751]
[1767764669064,0.46520649,139.16,139.06,188.42884139]
[1767764670673,0.46520649,139.16,139.09,6.4746]
[1767764671266,0.46520649,139.16,138.98,13.36482862]
[1767764671267,0.46520649,139.07,138.98,13.36482862]
[1767764671466,2.71064139,138.99,138.87,100.8725]
[1767764671665,2.71064139,138.99,138.86,116.95867001]
[1767764671666,5.55160265,138.98,138.86,100.8832]
[1767764671874,5.55160265,138.97,138.88,192.3346]
[1767764672070,0.50467757,138.99,138.88,185.8502]
[1767764672266,5.55203416,138.98,138.88,185.8502]
[1767764672581,5.55203416,138.97,138.88,185.8502]
[1767764672773,5.73284054,138.96,138.88,185.8502]
[1767764672973,0.50467757,138.99,138.88,185.8502]
[1767764673174,5.7328472,138.98,138.88,185.8502]
[1767764673367,5.7328472,138.97,138.88,185.8502]
[1767764673676,0.50467757,138.99,138.89,6.4837]
[1767764673877,5.72684851,138.98,138.89,6.4837]
[1767764674069,5.72684851,138.97,138.89,6.4837]
[1767764674266,0.50467757,138.99,138.89,6.4837]
[1767764674462,2.71064139,139.01,138.89,6.4837]
[1767764674463,5.7212894,138.98,138.91,100.8493]
[1767764674667,3.21531896,139.03,138.92,185.8205]
[1767764675767,3.21531896,139.03,138.93,6.4819]
[1767764677677,2.71064139,139.01,138.93,6.4819]
[1767764678372,101.36307757,138.9,138.76,100.9555]
[1767764678573,2.71064139,138.87,138.77,85.02]
[1767764679768,0.50467757,138.88,138.77,85.02]
[1767764680173,0.50467757,138.88,138.76,6.4901]
[1767764680375,0.50467757,138.88,138.77,85.04]
[1767764681776,0.50467757,138.88,138.77,192.4777]
[1767764682678,3.21531896,138.91,138.79,107.4252]
[1767764683180,0.50467757,138.9,138.79,107.4252]
[1767764683572,0.50467757,138.9,138.79,110.13584139]
[1767764686576,2.24506704,138.9,138.8,1.74038947]
[1767764686784,2.24506704,138.9,138.81,85.08]
[1767764687981,0.50467757,138.93,138.84,1.74038947]
[1767764688179,0.50467757,138.93,138.85,85.08]
[1767764688586,0.50467757,138.93,138.86,1.74038947]
[1767764693191,0.50467757,138.95,138.88,1.74038947]
[1767764694088,6.98517757,138.97,138.88,1.74038947]
[1767764694989,8.72556704,138.97,138.88,1.74038947]
[1767764696089,0.50467757,138.97,138.88,1.74038947]
[1767764698484,8.72546704,138.97,138.89,85.1]
[1767764700387,8.75528769,138.99,138.89,86.84038947]
[1767764701091,7.01489822,138.99,138.89,86.84038947]
[1767764701385,7.01539822,138.98,138.89,86.84038947]
[1767764701586,7.01539822,138.98,138.77,21.6]
[1767764701587,0.53124721,138.88,138.77,21.6]
[1767764701792,0.53124721,138.85,138.75,1.74038947]
[1767764701983,1.74038947,138.84,138.76,85.1]
[1767764702184,0.53124721,138.85,138.76,85.1]
[1767764702689,0.53124721,138.85,138.77,85.1]
[1767764704489,0.53124721,138.85,138.75,6.4907]
[1767764704694,0.53124721,138.85,138.78,85.1]
[1767764706687,7.01744721,138.85,138.78,85.1]
[1767764707091,0.53124721,138.84,138.73,6.4915]
[1767764707299,0.53124721,138.82,138.7,187.3193]
[1767764707494,0.53124721,138.82,138.72,6.4918]
[1767764707799,0.53124721,138.82,138.73,85.12]
[1767764708090,0.53124721,138.85,138.73,186.1008]
[1767764709489,100.8762,138.88,138.74,85.14]
[1767764709490,0.53124721,138.83,138.74,85.14]